[Event "Titled Tuesday Blitz November 14 Late 2023"]
[White "Bortnyk, Mykola"]
[Black "Osmak, Yuliia"]
[WhiteFideId "14120836"]
[BlackFideId "14101602"]
[WhiteElo "2941"]
[BlackElo "2505"]
[Result "1-0"]
[Round "1"]
[TimeControl "180+1"]
[Date "2023.11.14"]
[WhiteClock "0:00:21"]
[BlackClock "0:00:14"]
[Board "20"]

1. e4 {[%clk 0:03:00]}  c5 {[%clk 0:02:57]} 2. c3 {[%clk 0:03:01]}  Nf6 {[%clk 0:02:53]} 3. e5 {[%clk 0:03:01]}  Nd5 {[%clk 0:02:54]} 4. Bc4 {[%clk 0:03:02]}  Nb6 {[%clk 0:02:49]} 5. Bb3 {[%clk 0:03:02]}  d5 {[%clk 0:02:48]} 6. d4 {[%clk 0:03:00]}  Na6 {[%clk 0:02:37]} 7. Be3 {[%clk 0:02:40]}  cxd4 {[%clk 0:02:32]} 8. cxd4 {[%clk 0:02:41]}  Bf5 {[%clk 0:02:31]} 9. Ne2 {[%clk 0:02:33]}  e6 {[%clk 0:02:30]} 10. O-O {[%clk 0:02:30]}  Be7 {[%clk 0:02:28]} 11. Nbc3 {[%clk 0:02:23]}  O-O {[%clk 0:02:25]} 12. Ng3 {[%clk 0:02:23]}  Bg6 {[%clk 0:02:24]} 13. f4 {[%clk 0:02:22]}  f5 {[%clk 0:02:16]} 14. exf6 {[%clk 0:02:19]}  Bxf6 {[%clk 0:02:14]} 15. f5 {[%clk 0:02:13]}  exf5 {[%clk 0:02:13]} 16. Nxf5 {[%clk 0:02:13]}  Qd7 {[%clk 0:02:04]} 17. Qf3 {[%clk 0:01:59]}  Nc7 {[%clk 0:01:49]} 18. g4 {[%clk 0:01:54]}  Rae8 {[%clk 0:01:45]} 19. Ne4 {[%clk 0:01:46]}  Bxf5 {[%clk 0:01:29]} 20. gxf5 {[%clk 0:01:33]}  Nc4 {[%clk 0:01:04]} 21. Nxf6+ {[%clk 0:01:24]}  Rxf6 {[%clk 0:01:03]} 22. Bg5 {[%clk 0:01:24]}  Rf7 {[%clk 0:00:57]} 23. Rac1 {[%clk 0:01:16]}  b5 {[%clk 0:00:55]} 24. Kh1 {[%clk 0:01:03]}  Re4 {[%clk 0:00:53]} 25. Bxc4 {[%clk 0:00:50]}  bxc4 {[%clk 0:00:51]} 26. Rxc4 {[%clk 0:00:51]}  Rxf5 {[%clk 0:00:36]} 27. Qxf5 {[%clk 0:00:46]}  Qxf5 {[%clk 0:00:37]} 28. Rxf5 {[%clk 0:00:46]}  dxc4 {[%clk 0:00:38]} 29. Ra5 {[%clk 0:00:30]}  Ne6 {[%clk 0:00:34]} 30. Bd2 {[%clk 0:00:25]}  Rxd4 {[%clk 0:00:33]} 31. Bc3 {[%clk 0:00:25]}  Rd7 {[%clk 0:00:32]} 32. Kg2 {[%clk 0:00:26]}  Kf7 {[%clk 0:00:29]} 33. Kf3 {[%clk 0:00:25]}  g6 {[%clk 0:00:27]} 34. Ke4 {[%clk 0:00:24]}  Ng5+ {[%clk 0:00:25]} 35. Rxg5 {[%clk 0:00:23]}  Re7+ {[%clk 0:00:21]} 36. Kd4 {[%clk 0:00:22]}  h6 {[%clk 0:00:21]} 37. Rg2 {[%clk 0:00:22]}  g5 {[%clk 0:00:21]} 38. Kxc4 {[%clk 0:00:23]}  Kg6 {[%clk 0:00:21]} 39. b4 {[%clk 0:00:22]}  h5 {[%clk 0:00:21]} 40. b5 {[%clk 0:00:23]}  Rc7+ {[%clk 0:00:19]} 41. Kb4 {[%clk 0:00:23]}  g4 {[%clk 0:00:19]} 42. a4 {[%clk 0:00:24]}  Kf5 {[%clk 0:00:19]} 43. a5 {[%clk 0:00:24]}  Kf4 {[%clk 0:00:19]} 44. b6 {[%clk 0:00:19]}  axb6 {[%clk 0:00:19]} 45. axb6 {[%clk 0:00:20]}  Rc6 {[%clk 0:00:19]} 46. Bd4 {[%clk 0:00:19]}  Rc8 {[%clk 0:00:18]} 47. Kb5 {[%clk 0:00:19]}  h4 {[%clk 0:00:17]} 48. b7 {[%clk 0:00:18]}  Rb8 {[%clk 0:00:17]} 49. Kc6 {[%clk 0:00:19]}  Kf3 {[%clk 0:00:17]} 50. Rg1 {[%clk 0:00:19]}  g3 {[%clk 0:00:16]} 51. hxg3 {[%clk 0:00:20]}  hxg3 {[%clk 0:00:17]} 52. Rxg3+ {[%clk 0:00:21]}  Kxg3 {[%clk 0:00:14]} 53. Be5+ {[%clk 0:00:21]} 1-0


[Site "https://www.chess.com"]

[Event "Titled Tuesday Blitz November 14 Late 2023"]
[White "Erzhanov, Arman"]
[Black "Chigaev, Maksim"]
[WhiteFideId "4138821"]
[BlackFideId "4108116"]
[WhiteElo "2503"]
[BlackElo "2921"]
[Result "0-1"]
[Round "1"]
[TimeControl "180+1"]
[Date "2023.11.14"]
[WhiteClock "0:00:13"]
[BlackClock "0:00:10"]
[Board "23"]

1. e4 {[%clk 0:03:00]}  e6 {[%clk 0:02:58]} 2. b3 {[%clk 0:02:58]}  d5 {[%clk 0:02:57]} 3. Bb2 {[%clk 0:02:59]}  Nf6 {[%clk 0:02:56]} 4. e5 {[%clk 0:02:58]}  Nfd7 {[%clk 0:02:56]} 5. f4 {[%clk 0:02:59]}  c5 {[%clk 0:02:54]} 6. Qg4 {[%clk 0:02:58]}  h5 {[%clk 0:02:50]} 7. Qg3 {[%clk 0:02:58]}  g6 {[%clk 0:02:50]} 8. Nf3 {[%clk 0:02:58]}  Nc6 {[%clk 0:02:50]} 9. Nc3 {[%clk 0:02:58]}  Ne7 {[%clk 0:02:36]} 10. Bd3 {[%clk 0:02:52]}  a6 {[%clk 0:02:35]} 11. a4 {[%clk 0:02:51]}  b6 {[%clk 0:02:36]} 12. O-O {[%clk 0:02:48]}  Bb7 {[%clk 0:02:32]} 13. Ng5 {[%clk 0:02:48]}  Nf5 {[%clk 0:02:21]} 14. Bxf5 {[%clk 0:02:45]}  gxf5 {[%clk 0:02:21]} 15. Ne2 {[%clk 0:02:35]}  h4 {[%clk 0:02:09]} 16. Qf2 {[%clk 0:02:31]}  Be7 {[%clk 0:02:04]} 17. Nf3 {[%clk 0:02:26]}  h3 {[%clk 0:02:03]} 18. g3 {[%clk 0:02:26]}  d4 {[%clk 0:02:03]} 19. c3 {[%clk 0:02:23]}  d3 {[%clk 0:01:52]} 20. Nc1 {[%clk 0:02:22]}  c4 {[%clk 0:01:53]} 21. bxc4 {[%clk 0:02:17]}  Nc5 {[%clk 0:01:43]} 22. Qe3 {[%clk 0:02:05]}  Qd7 {[%clk 0:01:38]} 23. a5 {[%clk 0:01:49]}  Qc6 {[%clk 0:01:08]} 24. axb6 {[%clk 0:01:43]}  Qxb6 {[%clk 0:01:05]} 25. Ba3 {[%clk 0:01:40]}  Rd8 {[%clk 0:01:04]} 26. Nd4 {[%clk 0:01:38]}  Ba8 {[%clk 0:01:01]} 27. Kf2 {[%clk 0:01:03]}  Ne4+ {[%clk 0:00:50]} 28. Kg1 {[%clk 0:01:01]}  Qb7 {[%clk 0:00:38]} 29. Nf3 {[%clk 0:00:52]}  Bxa3 {[%clk 0:00:21]} 30. Rxa3 {[%clk 0:00:52]}  Kf8 {[%clk 0:00:21]} 31. Nb3 {[%clk 0:00:39]}  Kg7 {[%clk 0:00:21]} 32. Nbd4 {[%clk 0:00:38]}  Qb2 {[%clk 0:00:16]} 33. Rb3 {[%clk 0:00:36]}  Qa2 {[%clk 0:00:16]} 34. Rfb1 {[%clk 0:00:32]}  Nxc3 {[%clk 0:00:11]} 35. R1b2 {[%clk 0:00:17]}  Qa1+ {[%clk 0:00:09]} 36. Qe1 {[%clk 0:00:17]}  Ne2+ {[%clk 0:00:09]} 37. Kf2 {[%clk 0:00:17]}  Qxe1+ {[%clk 0:00:08]} 38. Kxe1 {[%clk 0:00:17]}  Nxd4 {[%clk 0:00:09]} 39. Nxd4 {[%clk 0:00:17]}  Rxd4 {[%clk 0:00:10]} 40. Rc3 {[%clk 0:00:14]}  Rc8 {[%clk 0:00:09]} 41. Rb4 {[%clk 0:00:14]}  Re4+ {[%clk 0:00:09]} 42. Kf2 {[%clk 0:00:14]}  Re2+ {[%clk 0:00:10]} 43. Kf1 {[%clk 0:00:15]}  Rxh2 {[%clk 0:00:10]} 44. Rbb3 {[%clk 0:00:14]}  Rh1+ {[%clk 0:00:09]} 45. Kf2 {[%clk 0:00:14]}  h2 {[%clk 0:00:10]} 46. Rxd3 {[%clk 0:00:13]}  Rd1 {[%clk 0:00:10]} 0-1


[Site "https://www.chess.com"]

[Event "Titled Tuesday Blitz November 14 Late 2023"]
[White "Hong, Andrew"]
[Black "Mekhane, Adam"]
[WhiteFideId "2099438"]
[BlackFideId "36050601"]
[WhiteElo "2916"]
[BlackElo "2501"]
[Result "1-0"]
[Round "1"]
[TimeControl "180+1"]
[Date "2023.11.14"]
[WhiteClock "0:00:28"]
[BlackClock "0:00:00"]
[Board "24"]

1. Nf3 {[%clk 0:03:00]}  Nf6 {[%clk 0:02:59]} 2. d4 {[%clk 0:02:55]}  g6 {[%clk 0:02:59]} 3. Bg5 {[%clk 0:02:54]}  Bg7 {[%clk 0:02:58]} 4. Nbd2 {[%clk 0:02:54]}  d5 {[%clk 0:02:57]} 5. e3 {[%clk 0:02:54]}  O-O {[%clk 0:02:54]} 6. c4 {[%clk 0:02:53]}  dxc4 {[%clk 0:02:53]} 7. Bxc4 {[%clk 0:02:52]}  b6 {[%clk 0:02:53]} 8. e4 {[%clk 0:02:48]}  Bb7 {[%clk 0:02:52]} 9. Qe2 {[%clk 0:02:48]}  Nc6 {[%clk 0:02:23]} 10. d5 {[%clk 0:02:47]}  Na5 {[%clk 0:02:20]} 11. Bd3 {[%clk 0:02:42]}  c5 {[%clk 0:02:00]} 12. O-O {[%clk 0:02:36]}  h6 {[%clk 0:01:57]} 13. Bh4 {[%clk 0:02:32]}  Ng4 {[%clk 0:01:51]} 14. h3 {[%clk 0:02:27]}  Ne5 {[%clk 0:01:41]} 15. Nxe5 {[%clk 0:02:27]}  Bxe5 {[%clk 0:01:42]} 16. Nf3 {[%clk 0:02:25]}  Bg7 {[%clk 0:01:39]} 17. Rad1 {[%clk 0:02:22]}  Rc8 {[%clk 0:01:37]} 18. b3 {[%clk 0:02:10]}  c4 {[%clk 0:01:13]} 19. bxc4 {[%clk 0:02:05]}  Ba6 {[%clk 0:01:13]} 20. Rc1 {[%clk 0:02:00]}  Qd7 {[%clk 0:01:13]} 21. e5 {[%clk 0:01:57]}  e6 {[%clk 0:01:03]} 22. d6 {[%clk 0:01:50]}  Nb7 {[%clk 0:00:59]} 23. Nd2 {[%clk 0:01:32]}  Nc5 {[%clk 0:00:59]} 24. Bb1 {[%clk 0:01:26]}  Bb7 {[%clk 0:00:58]} 25. f4 {[%clk 0:01:20]}  Qc6 {[%clk 0:00:46]} 26. Rc3 {[%clk 0:01:11]}  Kh8 {[%clk 0:00:41]} 27. Rg3 {[%clk 0:01:09]}  a6 {[%clk 0:00:35]} 28. Qg4 {[%clk 0:01:05]}  Rg8 {[%clk 0:00:30]} 29. Be7 {[%clk 0:00:58]}  b5 {[%clk 0:00:30]} 30. Qh4 {[%clk 0:00:47]}  bxc4 {[%clk 0:00:27]} 31. Nf3 {[%clk 0:00:41]}  Ne4 {[%clk 0:00:24]} 32. Bxe4 {[%clk 0:00:38]}  Qxe4 {[%clk 0:00:24]} 33. Bf6 {[%clk 0:00:37]}  h5 {[%clk 0:00:20]} 34. Ng5 {[%clk 0:00:32]}  Qd4+ {[%clk 0:00:17]} 35. Kh2 {[%clk 0:00:33]}  Rcf8 {[%clk 0:00:16]} 36. Nxe6 {[%clk 0:00:28]}  fxe6 {[%clk 0:00:00]} 37. Rxg6 {[%clk 0:00:28]} 1-0


[Site "https://www.chess.com"]

[Event "Titled Tuesday Blitz November 14 Late 2023"]
[White "Gatterer, Florian"]
[Black "Sjugirov, Sanan"]
[WhiteFideId "811688"]
[BlackFideId "4189302"]
[WhiteElo "2500"]
[BlackElo "2912"]
[Result "0-1"]
[Round "1"]
[TimeControl "180+1"]
[Date "2023.11.14"]
[WhiteClock "0:00:02"]
[BlackClock "0:00:38"]
[Board "25"]

1. d4 {[%clk 0:03:00]}  Nf6 {[%clk 0:02:58]} 2. Nf3 {[%clk 0:03:01]}  d5 {[%clk 0:02:58]} 3. g3 {[%clk 0:03:00]}  Bf5 {[%clk 0:02:53]} 4. c4 {[%clk 0:02:57]}  c6 {[%clk 0:02:51]} 5. Nc3 {[%clk 0:02:57]}  e6 {[%clk 0:02:50]} 6. Qb3 {[%clk 0:02:55]}  Qb6 {[%clk 0:02:46]} 7. c5 {[%clk 0:02:55]}  Qc7 {[%clk 0:02:46]} 8. Bf4 {[%clk 0:02:53]}  Qc8 {[%clk 0:02:46]} 9. Qd1 {[%clk 0:02:45]}  h6 {[%clk 0:02:45]} 10. Bg2 {[%clk 0:02:39]}  Nbd7 {[%clk 0:02:43]} 11. O-O {[%clk 0:02:31]}  Be7 {[%clk 0:02:44]} 12. Ne5 {[%clk 0:02:29]}  Nxe5 {[%clk 0:02:42]} 13. Bxe5 {[%clk 0:02:28]}  O-O {[%clk 0:02:40]} 14. b4 {[%clk 0:02:27]}  Nd7 {[%clk 0:02:35]} 15. Bf4 {[%clk 0:02:26]}  Bh7 {[%clk 0:02:31]} 16. Re1 {[%clk 0:02:16]}  Qd8 {[%clk 0:02:19]} 17. e4 {[%clk 0:02:06]}  dxe4 {[%clk 0:02:19]} 18. Bxe4 {[%clk 0:02:05]}  Bxe4 {[%clk 0:02:16]} 19. Nxe4 {[%clk 0:02:05]}  Nf6 {[%clk 0:02:16]} 20. Nxf6+ {[%clk 0:01:47]}  Bxf6 {[%clk 0:02:17]} 21. Bd6 {[%clk 0:01:48]}  Re8 {[%clk 0:02:15]} 22. Qg4 {[%clk 0:01:36]}  a5 {[%clk 0:02:10]} 23. a3 {[%clk 0:01:29]}  Qd7 {[%clk 0:02:03]} 24. h4 {[%clk 0:01:19]}  Ra6 {[%clk 0:02:01]} 25. Rab1 {[%clk 0:01:17]}  axb4 {[%clk 0:02:00]} 26. axb4 {[%clk 0:01:18]}  Ra4 {[%clk 0:01:58]} 27. Red1 {[%clk 0:00:55]}  Qd8 {[%clk 0:01:49]} 28. h5 {[%clk 0:00:53]}  Qa8 {[%clk 0:01:47]} 29. Bf4 {[%clk 0:00:33]}  Kh8 {[%clk 0:01:44]} 30. Be5 {[%clk 0:00:32]}  Qd8 {[%clk 0:01:43]} 31. Bd6 {[%clk 0:00:21]}  Kg8 {[%clk 0:01:36]} 32. Qf3 {[%clk 0:00:21]}  Qa8 {[%clk 0:01:30]} 33. Qg4 {[%clk 0:00:19]}  Ra2 {[%clk 0:01:26]} 34. Be5 {[%clk 0:00:18]}  Qd8 {[%clk 0:01:25]} 35. Bd6 {[%clk 0:00:17]}  Be7 {[%clk 0:01:05]} 36. Be5 {[%clk 0:00:16]}  Bf8 {[%clk 0:01:06]} 37. b5 {[%clk 0:00:14]}  Qd7 {[%clk 0:00:46]} 38. b6 {[%clk 0:00:14]}  Rea8 {[%clk 0:00:45]} 39. Rb3 {[%clk 0:00:10]}  Qd5 {[%clk 0:00:42]} 40. Qf3 {[%clk 0:00:08]}  Ra1 {[%clk 0:00:39]} 41. Rxa1 {[%clk 0:00:03]}  Rxa1+ {[%clk 0:00:39]} 42. Kg2 {[%clk 0:00:03]}  Qc4 {[%clk 0:00:38]} 43. Qd3 {[%clk 0:00:03]}  Qc1 {[%clk 0:00:38]} 44. Qf3 {[%clk 0:00:02]}  Qh1# {[%clk 0:00:38]} 0-1


[Site "https://www.chess.com"]

[Event "Titled Tuesday Blitz November 14 Late 2023"]
[White "Sreyas Payyappat"]
[Black "Kovalev, Vladislav"]
[WhiteFideId "46674969"]
[BlackFideId "13504398"]
[WhiteElo "2498"]
[BlackElo "2893"]
[Result "1/2-1/2"]
[Round "1"]
[TimeControl "180+1"]
[Date "2023.11.14"]
[WhiteClock "0:00:21"]
[BlackClock "0:00:04"]
[Board "27"]

1. e4 {[%clk 0:03:00]}  e5 {[%clk 0:02:56]} 2. Nf3 {[%clk 0:02:58]}  Nc6 {[%clk 0:02:54]} 3. Bc4 {[%clk 0:02:54]}  Nf6 {[%clk 0:02:54]} 4. d4 {[%clk 0:02:52]}  exd4 {[%clk 0:02:53]} 5. e5 {[%clk 0:02:53]}  d5 {[%clk 0:02:53]} 6. Bb5 {[%clk 0:02:51]}  Nd7 {[%clk 0:02:52]} 7. O-O {[%clk 0:02:49]}  Be7 {[%clk 0:02:53]} 8. Nxd4 {[%clk 0:02:35]}  Nxd4 {[%clk 0:02:53]} 9. Qxd4 {[%clk 0:02:36]}  c6 {[%clk 0:02:53]} 10. Bd3 {[%clk 0:02:35]}  O-O {[%clk 0:02:52]} 11. Nc3 {[%clk 0:02:30]}  Nc5 {[%clk 0:02:52]} 12. Be3 {[%clk 0:02:25]}  Ne6 {[%clk 0:02:40]} 13. Qg4 {[%clk 0:01:53]}  d4 {[%clk 0:02:40]} 14. Rad1 {[%clk 0:01:52]}  dxe3 {[%clk 0:02:21]} 15. Bxh7+ {[%clk 0:01:47]}  Kxh7 {[%clk 0:02:21]} 16. Rxd8 {[%clk 0:01:46]}  exf2+ {[%clk 0:02:01]} 17. Rxf2 {[%clk 0:01:44]}  Nxd8 {[%clk 0:02:01]} 18. Qh5+ {[%clk 0:01:43]}  Kg8 {[%clk 0:02:01]} 19. Ne4 {[%clk 0:01:41]}  Ne6 {[%clk 0:01:06]} 20. Rf3 {[%clk 0:01:28]}  f5 {[%clk 0:00:29]} 21. exf6 {[%clk 0:00:51]}  Bxf6 {[%clk 0:00:30]} 22. Nxf6+ {[%clk 0:00:42]}  gxf6 {[%clk 0:00:28]} 23. Rh3 {[%clk 0:00:30]}  Ng7 {[%clk 0:00:14]} 24. Qh7+ {[%clk 0:00:25]}  Kf7 {[%clk 0:00:14]} 25. Rg3 {[%clk 0:00:25]}  Rg8 {[%clk 0:00:15]} 26. Qg6+ {[%clk 0:00:24]}  Ke7 {[%clk 0:00:16]} 27. Qh6 {[%clk 0:00:20]}  Kf7 {[%clk 0:00:11]} 28. Qg6+ {[%clk 0:00:20]}  Ke7 {[%clk 0:00:12]} 29. Qh6 {[%clk 0:00:21]}  Kf7 {[%clk 0:00:04]} 30. Qg6+ {[%clk 0:00:21]} 1/2-1/2


[Site "https://www.chess.com"]

[Event "Titled Tuesday Blitz November 14 Late 2023"]
[White "Jesseinkman"]
[Black "Henriquez Villagra, Cristobal"]
[BlackFideId "3409350"]
[WhiteElo "2486"]
[BlackElo "2870"]
[Result "0-1"]
[Round "1"]
[TimeControl "180+1"]
[Date "2023.11.14"]
[WhiteClock "0:00:00"]
[BlackClock "0:00:08"]
[Board "33"]

1. e4 {[%clk 0:03:00]}  d6 {[%clk 0:02:59]} 2. d4 {[%clk 0:02:58]}  g6 {[%clk 0:02:59]} 3. Nf3 {[%clk 0:02:58]}  a6 {[%clk 0:02:59]} 4. a4 {[%clk 0:02:57]}  Bg7 {[%clk 0:02:59]} 5. Nc3 {[%clk 0:02:58]}  Nd7 {[%clk 0:02:58]} 6. Be3 {[%clk 0:02:56]}  Ngf6 {[%clk 0:02:57]} 7. Bc4 {[%clk 0:02:56]}  O-O {[%clk 0:02:57]} 8. h3 {[%clk 0:02:57]}  b6 {[%clk 0:02:56]} 9. O-O {[%clk 0:02:56]}  e6 {[%clk 0:02:44]} 10. Re1 {[%clk 0:02:54]}  Bb7 {[%clk 0:02:43]} 11. Bg5 {[%clk 0:02:54]}  h6 {[%clk 0:02:42]} 12. Bh4 {[%clk 0:02:54]}  Qe8 {[%clk 0:02:15]} 13. e5 {[%clk 0:02:48]}  dxe5 {[%clk 0:02:13]} 14. dxe5 {[%clk 0:02:49]}  Nh7 {[%clk 0:02:13]} 15. Bg3 {[%clk 0:02:37]}  Rd8 {[%clk 0:02:12]} 16. Qe2 {[%clk 0:02:36]}  a5 {[%clk 0:02:10]} 17. Nb5 {[%clk 0:02:30]}  Qe7 {[%clk 0:01:58]} 18. Nxc7 {[%clk 0:02:05]}  Bxf3 {[%clk 0:01:38]} 19. gxf3 {[%clk 0:01:43]}  h5 {[%clk 0:01:24]} 20. f4 {[%clk 0:01:27]}  h4 {[%clk 0:01:21]} 21. Bh2 {[%clk 0:01:27]}  Nxe5 {[%clk 0:01:17]} 22. fxe5 {[%clk 0:00:55]}  Qxc7 {[%clk 0:01:16]} 23. Qg4 {[%clk 0:00:43]}  Qc5 {[%clk 0:01:14]} 24. c3 {[%clk 0:00:27]}  Rd2 {[%clk 0:01:13]} 25. Re2 {[%clk 0:00:25]}  Rxe2 {[%clk 0:01:12]} 26. Qxe2 {[%clk 0:00:24]}  Rd8 {[%clk 0:01:12]} 27. Bf4 {[%clk 0:00:21]}  g5 {[%clk 0:00:58]} 28. Bh2 {[%clk 0:00:20]}  Nf8 {[%clk 0:00:58]} 29. Bb3 {[%clk 0:00:18]}  Ng6 {[%clk 0:00:58]} 30. Re1 {[%clk 0:00:18]}  Kf8 {[%clk 0:00:40]} 31. Bc2 {[%clk 0:00:18]}  Nf4 {[%clk 0:00:40]} 32. Bxf4 {[%clk 0:00:17]}  gxf4 {[%clk 0:00:41]} 33. Rd1 {[%clk 0:00:12]}  Rxd1+ {[%clk 0:00:23]} 34. Qxd1 {[%clk 0:00:12]}  Ke7 {[%clk 0:00:23]} 35. Qd6+ {[%clk 0:00:05]}  Qxd6 {[%clk 0:00:24]} 36. exd6+ {[%clk 0:00:06]}  Kxd6 {[%clk 0:00:25]} 37. b4 {[%clk 0:00:03]}  Bxc3 {[%clk 0:00:23]} 38. bxa5 {[%clk 0:00:03]}  Bxa5 {[%clk 0:00:20]} 39. f3 {[%clk 0:00:04]}  Ke5 {[%clk 0:00:19]} 40. Kg2 {[%clk 0:00:05]}  Kd4 {[%clk 0:00:20]} 41. Bb3 {[%clk 0:00:04]}  Ke5 {[%clk 0:00:18]} 42. Bc2 {[%clk 0:00:04]}  Bb4 {[%clk 0:00:18]} 43. Bb3 {[%clk 0:00:04]}  Bc5 {[%clk 0:00:19]} 44. Bc2 {[%clk 0:00:05]}  Kd4 {[%clk 0:00:17]} 45. Bb3 {[%clk 0:00:04]}  Kc3 {[%clk 0:00:18]} 46. Bd1 {[%clk 0:00:04]}  Kb4 {[%clk 0:00:18]} 47. Kf1 {[%clk 0:00:04]}  f5 {[%clk 0:00:18]} 48. Ke2 {[%clk 0:00:04]}  e5 {[%clk 0:00:18]} 49. Bc2 {[%clk 0:00:05]}  Bd6 {[%clk 0:00:18]} 50. Bd1 {[%clk 0:00:04]}  e4 {[%clk 0:00:18]} 51. Bc2 {[%clk 0:00:05]}  Kc3 {[%clk 0:00:15]} 52. Bd1 {[%clk 0:00:05]}  Bc5 {[%clk 0:00:15]} 53. Ke1 {[%clk 0:00:04]}  Kd3 {[%clk 0:00:14]} 54. Kf1 {[%clk 0:00:03]}  Bb4 {[%clk 0:00:10]} 55. Be2+ {[%clk 0:00:04]}  Kd2 {[%clk 0:00:10]} 56. Bb5 {[%clk 0:00:04]}  Bc5 {[%clk 0:00:08]} 57. Bc6 {[%clk 0:00:04]}  Ke3 {[%clk 0:00:08]} 58. Bd5 {[%clk 0:00:04]}  Kxf3 {[%clk 0:00:08]} 59. Be6 {[%clk 0:00:04]}  e3 {[%clk 0:00:08]} 60. Bc4 {[%clk 0:00:04]}  Kg3 {[%clk 0:00:07]} 61. Be6 {[%clk 0:00:05]}  f3 {[%clk 0:00:08]} 62. Bxf5 {[%clk 0:00:00]}  e2+ {[%clk 0:00:08]} 0-1


[Site "https://www.chess.com"]

[Event "Titled Tuesday Blitz November 14 Late 2023"]
[White "Beerdsen, Thomas"]
[Black "Sztokbant, Bernardo Vainzoff"]
[WhiteFideId "1030108"]
[BlackFideId "2115956"]
[WhiteElo "2868"]
[BlackElo "2484"]
[Result "1-0"]
[Round "1"]
[TimeControl "180+1"]
[Date "2023.11.14"]
[WhiteClock "0:01:56"]
[BlackClock "0:02:13"]
[Board "34"]

1. e4 {[%clk 0:03:00]}  c5 {[%clk 0:03:00]} 2. Nf3 {[%clk 0:03:01]}  d6 {[%clk 0:02:59]} 3. d4 {[%clk 0:03:01]}  cxd4 {[%clk 0:03:00]} 4. Nxd4 {[%clk 0:03:02]}  Nf6 {[%clk 0:03:01]} 5. Nc3 {[%clk 0:03:03]}  g6 {[%clk 0:03:01]} 6. h3 {[%clk 0:03:03]}  Bg7 {[%clk 0:03:01]} 7. Nf3 {[%clk 0:03:04]}  O-O {[%clk 0:03:01]} 8. Bc4 {[%clk 0:03:04]}  Nc6 {[%clk 0:03:00]} 9. O-O {[%clk 0:03:05]}  Be6 {[%clk 0:02:56]} 10. Bb3 {[%clk 0:03:03]}  Rc8 {[%clk 0:02:55]} 11. Bg5 {[%clk 0:03:03]}  Nd7 {[%clk 0:02:53]} 12. Qe2 {[%clk 0:03:03]}  Nde5 {[%clk 0:02:52]} 13. Rad1 {[%clk 0:03:01]}  Nxf3+ {[%clk 0:02:52]} 14. Qxf3 {[%clk 0:03:02]}  Nd4 {[%clk 0:02:51]} 15. Qe3 {[%clk 0:03:01]}  Nxb3 {[%clk 0:02:47]} 16. cxb3 {[%clk 0:03:02]}  Qa5 {[%clk 0:02:45]} 17. Bxe7 {[%clk 0:03:01]}  Rfe8 {[%clk 0:02:45]} 18. Bxd6 {[%clk 0:03:02]}  b5 {[%clk 0:02:41]} 19. a3 {[%clk 0:02:58]}  f6 {[%clk 0:02:37]} 20. b4 {[%clk 0:02:47]}  Qa6 {[%clk 0:02:35]} 21. Bc5 {[%clk 0:02:46]}  Bb3 {[%clk 0:02:35]} 22. Rd6 {[%clk 0:02:46]}  Qb7 {[%clk 0:02:34]} 23. Nd5 {[%clk 0:02:43]}  Bxd5 {[%clk 0:02:34]} 24. Rxd5 {[%clk 0:02:44]}  f5 {[%clk 0:02:34]} 25. Qb3 {[%clk 0:02:42]}  Kh8 {[%clk 0:02:33]} 26. exf5 {[%clk 0:02:42]}  gxf5 {[%clk 0:02:32]} 27. Rxf5 {[%clk 0:02:43]}  Re2 {[%clk 0:02:31]} 28. Rd1 {[%clk 0:02:35]}  Rg8 {[%clk 0:02:31]} 29. Rf7 {[%clk 0:02:27]}  Qe4 {[%clk 0:02:24]} 30. Rxg7 {[%clk 0:02:04]}  Kxg7 {[%clk 0:02:21]} 31. Rd7+ {[%clk 0:02:04]}  Kh6 {[%clk 0:02:17]} 32. Qxg8 {[%clk 0:01:59]}  Re1+ {[%clk 0:02:16]} 33. Kh2 {[%clk 0:01:59]}  Qb1 {[%clk 0:02:13]} 34. Qg7+ {[%clk 0:01:56]} 1-0


[Site "https://www.chess.com"]

[Event "Titled Tuesday Blitz November 14 Late 2023"]
[White "Keleberda, Tymur"]
[Black "Rustemov, Alexander"]
[WhiteFideId "14174294"]
[BlackFideId "4119002"]
[WhiteElo "2481"]
[BlackElo "2862"]
[Result "0-1"]
[Round "1"]
[TimeControl "180+1"]
[Date "2023.11.14"]
[WhiteClock "0:01:08"]
[BlackClock "0:02:02"]
[Board "35"]

1. e4 {[%clk 0:02:31]}  e6 {[%clk 0:02:59]} 2. d4 {[%clk 0:02:31]}  d5 {[%clk 0:02:59]} 3. Nc3 {[%clk 0:02:32]}  dxe4 {[%clk 0:03:00]} 4. Nxe4 {[%clk 0:02:33]}  Bd7 {[%clk 0:03:00]} 5. Nf3 {[%clk 0:02:32]}  Bc6 {[%clk 0:03:01]} 6. Bd3 {[%clk 0:02:33]}  Nd7 {[%clk 0:03:02]} 7. c3 {[%clk 0:02:31]}  Ngf6 {[%clk 0:03:02]} 8. Qe2 {[%clk 0:02:30]}  Nxe4 {[%clk 0:03:01]} 9. Bxe4 {[%clk 0:02:31]}  Bxe4 {[%clk 0:03:02]} 10. Qxe4 {[%clk 0:02:32]}  c6 {[%clk 0:03:02]} 11. O-O {[%clk 0:02:31]}  Bd6 {[%clk 0:03:03]} 12. Bf4 {[%clk 0:02:31]}  Nf6 {[%clk 0:03:03]} 13. Qe3 {[%clk 0:02:03]}  Nd5 {[%clk 0:03:02]} 14. Qe4 {[%clk 0:02:04]}  Nxf4 {[%clk 0:03:01]} 15. Ne5 {[%clk 0:02:04]}  Ng6 {[%clk 0:02:57]} 16. f4 {[%clk 0:02:01]}  f5 {[%clk 0:02:51]} 17. Qe2 {[%clk 0:01:59]}  Nxe5 {[%clk 0:02:41]} 18. fxe5 {[%clk 0:01:56]}  Be7 {[%clk 0:02:40]} 19. a4 {[%clk 0:01:49]}  O-O {[%clk 0:02:39]} 20. a5 {[%clk 0:01:48]}  c5 {[%clk 0:02:35]} 21. a6 {[%clk 0:01:42]}  cxd4 {[%clk 0:02:26]} 22. axb7 {[%clk 0:01:41]}  Rb8 {[%clk 0:02:26]} 23. Rfd1 {[%clk 0:01:25]}  Rxb7 {[%clk 0:02:22]} 24. cxd4 {[%clk 0:01:20]}  Qd5 {[%clk 0:02:17]} 25. Ra6 {[%clk 0:01:16]}  Rfb8 {[%clk 0:02:14]} 26. Rd2 {[%clk 0:01:14]}  Rxb2 {[%clk 0:02:06]} 27. Rxb2 {[%clk 0:01:07]}  Qxd4+ {[%clk 0:02:02]} 28. Qf2 {[%clk 0:01:08]} 0-1


[Site "https://www.chess.com"]

[Event "Titled Tuesday Blitz November 14 Late 2023"]
[White "Szpar, Milosz"]
[Black "Willy, Stephen"]
[WhiteFideId "1184989"]
[BlackFideId "30981468"]
[WhiteElo "2857"]
[BlackElo "2477"]
[Result "1-0"]
[Round "1"]
[TimeControl "180+1"]
[Date "2023.11.14"]
[WhiteClock "0:01:42"]
[BlackClock "0:00:11"]
[Board "36"]

1. Nf3 {[%clk 0:03:00]}  c5 {[%clk 0:02:58]} 2. c4 {[%clk 0:02:57]}  Nc6 {[%clk 0:02:55]} 3. Nc3 {[%clk 0:02:57]}  e5 {[%clk 0:02:54]} 4. g3 {[%clk 0:02:56]}  d6 {[%clk 0:02:53]} 5. Bg2 {[%clk 0:02:56]}  g6 {[%clk 0:02:52]} 6. O-O {[%clk 0:02:56]}  Bg7 {[%clk 0:02:53]} 7. e3 {[%clk 0:02:54]}  Nge7 {[%clk 0:02:52]} 8. b3 {[%clk 0:02:53]}  O-O {[%clk 0:02:49]} 9. Bb2 {[%clk 0:02:53]}  f5 {[%clk 0:02:41]} 10. d3 {[%clk 0:02:49]}  h6 {[%clk 0:02:33]} 11. Ne2 {[%clk 0:02:40]}  g5 {[%clk 0:02:26]} 12. d4 {[%clk 0:02:40]}  e4 {[%clk 0:02:10]} 13. Nd2 {[%clk 0:02:35]}  f4 {[%clk 0:01:40]} 14. exf4 {[%clk 0:02:35]}  gxf4 {[%clk 0:01:34]} 15. Nxf4 {[%clk 0:02:33]}  Nxd4 {[%clk 0:01:18]} 16. Nxe4 {[%clk 0:02:29]}  Rxf4 {[%clk 0:01:10]} 17. gxf4 {[%clk 0:02:29]}  Ng6 {[%clk 0:01:11]} 18. Bxd4 {[%clk 0:02:11]}  Bxd4 {[%clk 0:01:09]} 19. Qf3 {[%clk 0:01:59]}  Kh7 {[%clk 0:00:48]} 20. Rad1 {[%clk 0:01:49]}  Nh4 {[%clk 0:00:47]} 21. Qh5 {[%clk 0:01:43]}  Nxg2 {[%clk 0:00:16]} 22. Ng5+ {[%clk 0:01:42]}  Kg7 {[%clk 0:00:11]} 23. Qf7+ {[%clk 0:01:42]} 1-0


[Site "https://www.chess.com"]